fUST/lending_fUST_20250702
["ID","MTS","AMOUNT","RATE_DAILY","PERIOD"]
[369088133,1751466644423,-486.43844272,0.00019726,2]
[369088134,1751466644435,-1673.25,0.00019726,2]
[369088135,1751466644445,-709.4,0.00019726,2]
[369088136,1751466644455,-460.0,0.00019726,2]
[369088137,1751466644464,-223.423106,0.00019726,2]
[369088138,1751466644474,-460.0,0.00019726,2]
[369088139,1751466644487,-460.0,0.00019726,2]
[369088140,1751466644496,-460.0,0.00019726,2]
[369088141,1751466644506,-245.851277,0.00019726,2]
[369088142,1751466644516,-245.851277,0.00019726,2]
[369088143,1751466644527,-460.0,0.00019726,2]
[369088144,1751466644536,-245.851277,0.00019726,2]
[369088145,1751466644546,-600.92,0.00019726,2]
[369088146,1751466644557,-245.851277,0.00019726,2]
[369088147,1751466644568,-260.760136,0.00019726,2]
[369088148,1751466644577,-460.0,0.00019726,2]
[369088149,1751466644587,-460.0,0.00019726,2]
[369088150,1751466644597,-1068.4,0.00019726,2]
[369088151,1751466644607,-576.49,0.00019726,2]
[369088152,1751466644618,-477.75,0.00019726,2]
[369088153,1751466644627,-936.1,0.00019726,2]
[369088154,1751466644638,-2073.05,0.00019726,2]
[369088155,1751466644648,-2623.17,0.00019726,2]
[369088156,1751466644658,-938.4,0.00019726,2]
[369088157,1751466644668,-600.34,0.00019726,2]
[369088158,1751466644678,-460.0,0.00019726,2]
[369088159,1751466644688,-460.0,0.00019726,2]
[369088160,1751466644698,-566.41,0.00019726,2]
[369088161,1751466644708,-460.0,0.00019726,2]
[369088162,1751466644720,-3089.83,0.00019726,2]
[369088163,1751466644730,-537.5,0.00019726,2]
[369088164,1751466644740,-460.0,0.00019726,2]
[369088165,1751466644749,-460.0,0.00019726,2]
[369088166,1751466644759,-460.0,0.00019726,2]
[369088167,1751466644769,-1580.4,0.00019726,2]
[369088168,1751466644779,-3964.93,0.00019726,2]
[369088169,1751466644788,-504.75,0.00019726,2]
[369088170,1751466644798,-460.0,0.00019726,2]
[369088171,1751466644807,-460.0,0.00019726,2]
[369088172,1751466644818,-460.0,0.00019726,2]
[369088173,1751466644828,-460.0,0.00019726,2]
[369088174,1751466644838,-1972.09,0.00019726,2]
[369088175,1751466644847,-151.0,0.00019726,2]
[369088176,1751466644857,-151.0,0.00019726,2]
[369088177,1751466644868,-511.05,0.00019726,2]
[369088178,1751466644878,-4287.54,0.00019726,2]
[369088179,1751466644888,-460.0,0.00019726,2]
[369088180,1751466644897,-1703.05,0.00019726,2]
[369088181,1751466644907,-460.0,0.00019726,2]
[369088182,1751466644916,-460.0,0.00019726,2]
[369088183,1751466644925,-460.0,0.00019726,2]
[369088184,1751466644935,-460.0,0.00019726,2]
[369088185,1751466644946,-1074.93,0.00019726,2]
[369088186,1751466644956,-500.0,0.00019772,2]
[369088187,1751466644966,-500.0,0.00019772,2]
[369088188,1751466644976,-151.0,0.000198,2]
[369088189,1751466644986,-500.0,0.0001982,2]
[369088190,1751466644995,-500.0,0.0001982,2]
[369088191,1751466645006,-62715.17214307,0.00019831,2]
[369088192,1751466645016,-5709.94641149,0.00019831,2]
[369088193,1751466645026,-215.0738,0.00019843,2]
[369088194,1751466645035,-151.0,0.00019865,2]
[369088195,1751466645045,-151.0,0.00019865,2]
[369088196,1751466645055,-24891.7936645,0.00019882,2]
[369088197,1751466645065,-627.884499,0.00019882,2]
[369088198,1751466645075,-500.0,0.00019882,2]
[369088199,1751466645085,-1217.87,0.00019945,2]
[369088200,1751466645095,-1217.87,0.00019945,2]
[369088201,1751466645105,-1217.87,0.00019945,2]
[369088202,1751466645117,-1217.87,0.00019945,2]
[369088203,1751466645127,-1218.02,0.00019945,2]
[369088204,1751466645137,-168.0,0.00019972,2]
[369088205,1751466645147,-460.0,0.00019972,2]
[369088206,1751466645157,-151.0,0.00019975,2]
[369088207,1751466645167,-151.0,0.00019975,2]
[369088208,1751466645177,-241.411503,0.00019975,2]
[369088209,1751466645187,-241.411503,0.00019975,2]
[369088210,1751466645197,-430.359968,0.00019975,2]
[369088211,1751466645207,-430.359968,0.00019975,2]
[369088212,1751466645217,-151.0,0.00019975,2]
[369088213,1751466645228,-172.454642,0.00019975,2]
[369088214,1751466645238,-172.454642,0.00019975,2]
[369088215,1751466645247,-151.0,0.00019975,2]
[369088216,1751466645257,-151.0,0.00019975,2]
[369088217,1751466645267,-451.635067,0.00019975,2]
[369088218,1751466645276,-451.635067,0.00019975,2]
[369088219,1751466645286,-151.0,0.00019975,2]
[369088220,1751466645295,-151.0,0.00019975,2]
[369088221,1751466645305,-966.0,0.00019975,2]
[369088222,1751466645315,-406.0,0.00019975,2]
[369088223,1751466645325,-2151.0,0.00019975,2]
[369088224,1751466645334,-646.0,0.00019975,2]
[369088225,1751466645344,-151.0,0.00019999,2]
[369088226,1751466645353,-245.851277,0.00019999,2]
[369088227,1751466645363,-245.851277,0.00019999,2]
[369088228,1751466645373,-151.0,0.0002,2]
[369088229,1751466645382,-151.0,0.0002,2]
[369088230,1751466645392,-151.0,0.0002,2]
[369088231,1751466645401,-460.0,0.0002,2]
[369088232,1751466645411,-151.0,0.0002,2]
[369088233,1751466645420,-1405.66460753,0.0002,2]
[369088234,1751466645430,-460.0,0.0002,2]
[369088235,1751466645440,-151.0,0.0002,2]
[369088236,1751466645450,-460.0,0.0002,2]
[369088237,1751466645459,-151.0,0.0002,2]
[369088238,1751466645470,-151.0,0.0002,2]
[369088239,1751466645483,-592.94,0.0002,2]
[369088240,1751466645492,-460.0,0.0002,2]
[369088241,1751466645502,-460.0,0.0002,2]
[369088242,1751466645512,-241.411503,0.0002,2]
[369088243,1751466645522,-241.411503,0.0002,2]
[369088244,1751466645532,-428.95090083,0.0002,2]
[369088245,1751466645542,-200.0,0.0002,3]
[369088246,1751466645552,-460.0,0.0002,2]
[369088247,1751466645562,-561.97,0.0002,2]
[369088248,1751466645572,-151.0,0.0002,2]
[369088249,1751466645582,-151.0,0.0002,2]
[369088250,1751466645592,-460.0,0.0002,2]
[369088251,1751466645601,-430.359968,0.0002,2]
[369088252,1751466645611,-430.359968,0.0002,2]
[369088253,1751466645622,-613.15,0.0002,2]
[369088254,1751466645631,-151.0,0.0002,2]
[369088255,1751466645641,-172.454642,0.0002,2]
[369088256,1751466645651,-172.454642,0.0002,2]
[369088257,1751466645661,-151.0,0.0002,2]
[369088258,1751466645671,-460.0,0.0002,2]
[369088259,1751466645680,-460.0,0.0002,2]
[369088260,1751466645690,-151.0,0.0002,2]
[369088261,1751466645700,-1206.3,0.0002,2]
[369088262,1751466645709,-253.457221,0.0002,2]
[369088263,1751466645719,-253.457221,0.0002,2]
[369088264,1751466645728,-253.457221,0.0002,2]
[369088266,1751466645738,-253.457221,0.0002,2]
[369088268,1751466645748,-460.0,0.0002,2]
[369088269,1751466645758,-460.0,0.0002,2]
[369088270,1751466645768,-151.0,0.0002,2]
[369088271,1751466645778,-151.0,0.0002,2]
[369088272,1751466645788,-217.568585,0.0002,2]
[369088273,1751466645798,-608.16,0.0002,2]
[369088274,1751466645807,-151.0,0.0002,2]
[369088275,1751466645818,-396.79,0.0002,2]
[369088276,1751466645827,-507.74,0.0002,2]
[369088277,1751466645836,-460.0,0.0002,2]
[369088278,1751466645846,-1038.44,0.0002,2]
[369088279,1751466645855,-460.0,0.0002,2]
[369088280,1751466645866,-1714.6,0.0002,2]
[369088281,1751466645875,-938.5,0.0002,2]
[369088282,1751466645884,-460.0,0.0002,2]
[369088283,1751466645894,-451.635067,0.0002,2]
[369088284,1751466645904,-451.635067,0.0002,2]
[369088285,1751466645914,-460.0,0.0002,2]
[369088286,1751466645923,-481.985425,0.0002,2]
[369088287,1751466645933,-481.985425,0.0002,2]
[369088289,1751466645943,-481.985425,0.0002,2]
[369088290,1751466645953,-481.985425,0.0002,2]
[369088291,1751466645962,-460.0,0.0002,2]
[369088292,1751466645971,-460.0,0.0002,2]
[369088293,1751466645982,-4082.07,0.0002,2]
[369088294,1751466645992,-151.0,0.0002,2]
[369088295,1751466646002,-151.0,0.0002,2]
[369088296,1751466646012,-532.57,0.0002,2]
[369088298,1751466646021,-548.32,0.0002,2]
[369088300,1751466646031,-1629.44,0.0002,2]
[369088302,1751466646040,-151.0,0.0002,2]
[369088304,1751466646050,-460.0,0.0002,2]
[369088306,1751466646060,-973.5,0.0002,2]
[369088308,1751466646069,-460.0,0.0002,2]
[369088310,1751466646079,-1421.39,0.0002,2]
[369088312,1751466646089,-460.0,0.0002,2]
[369088314,1751466646099,-497.82103826,0.0002,2]
[369088316,1751466646109,-2500.66,0.0002,2]
[369088318,1751466646119,-2690.46,0.0002,2]
[369088320,1751466646128,-151.0,0.0002,2]
[369088321,1751466646138,-4321.4,0.0002,2]
[369088322,1751466646148,-460.0,0.0002,2]
[369088323,1751466646157,-151.0,0.0002,2]
[369088324,1751466646168,-460.0,0.0002,2]
[369088325,1751466646179,-614.07,0.0002,2]
[369088326,1751466646188,-1673.25,0.0002,2]
[369088327,1751466646198,-709.4,0.0002,2]
[369088328,1751466646207,-460.0,0.0002,2]
[369088329,1751466646217,-460.0,0.0002,2]
[369088330,1751466646227,-572.32,0.0002,2]
[369088331,1751466646236,-460.0,0.0002,2]
[369088332,1751466646246,-245.851277,0.0002,2]
[369088333,1751466646256,-600.92,0.0002,2]
[369088334,1751466646266,-245.851277,0.0002,2]
[369088335,1751466646276,-460.0,0.0002,2]
[369088336,1751466646286,-659.346794,0.0002,2]
[369088337,1751466646295,-460.0,0.0002,2]
[369088338,1751466646305,-460.0,0.0002,2]
[369088339,1751466646315,-1068.4,0.0002,2]
[369088340,1751466646326,-576.49,0.0002,2]
[369088341,1751466646335,-477.75,0.0002,2]
[369088342,1751466646345,-936.1,0.0002,2]
[369088343,1751466646354,-2073.05,0.0002,2]
[369088344,1751466646364,-2623.17,0.0002,2]
[369088345,1751466646374,-938.4,0.0002,2]
[369088346,1751466646383,-600.34,0.0002,2]
[369088347,1751466646393,-460.0,0.0002,2]
[369088348,1751466646403,-460.0,0.0002,2]
[369088349,1751466646412,-566.41,0.0002,2]
[369088350,1751466646422,-460.0,0.0002,2]
[369088351,1751466646431,-3089.83,0.0002,2]
[369088352,1751466646441,-466.7751742,0.0002,2]
[369088353,1751466646451,-460.0,0.0002,2]
[369088354,1751466646461,-537.5,0.0002,2]
[369088355,1751466646471,-460.0,0.0002,2]
[369088356,1751466646485,-1580.4,0.0002,2]
[369088357,1751466646494,-3964.93,0.0002,2]
[369088358,1751466646505,-504.75,0.0002,2]
[369088359,1751466646515,-460.0,0.0002,2]
[369088360,1751466646526,-460.0,0.0002,2]
[369088361,1751466646537,-460.0,0.0002,2]
[369088362,1751466646549,-460.0,0.0002,2]
[369088363,1751466646559,-1972.09,0.0002,2]
[369088364,1751466646568,-276.820721,0.0002,2]
[369088365,1751466646578,-511.05,0.0002,2]
[369088366,1751466646588,-4287.54,0.0002,2]
[369088367,1751466646598,-460.0,0.0002,2]
[369088368,1751466646608,-1703.05,0.0002,2]
[369088369,1751466646618,-460.0,0.0002,2]
[369088370,1751466646627,-460.0,0.0002,2]
[369088371,1751466646636,-460.0,0.0002,2]
[369088372,1751466646646,-1074.93,0.0002,2]
[369088373,1751466646655,-168.0,0.00020008,2]
[369088374,1751466646665,-650.0,0.00020014,2]
[369088375,1751466646676,-381.96330828,0.00020099,2]
[369088376,1751466646686,-5709.94641149,0.00020107,2]
[369088377,1751466646696,-151.0,0.00020107,2]
[369088378,1751466646706,-151.0,0.00020107,2]
[369088379,1751466646715,-161.190978,0.0002011,2]
[369088380,1751466646725,-169.4,0.00020112,3]
[369088381,1751466646735,-926.0608359,0.00020174,2]
[369088382,1751466646745,-429.879633,0.00020187,2]
[369088383,1751466646754,-1013.48,0.000202,2]
[369088384,1751466646764,-151.0,0.000202,3]
[369088385,1751466646774,-451.635067,0.000202,2]
[369088386,1751466646785,-451.635067,0.000202,2]
[369088387,1751466646794,-151.0,0.000202,2]
[369088388,1751466646804,-251.558406,0.000202,2]
[369088389,1751466646814,-587.0,0.00020256,2]
[369088390,1751466646824,-151.0,0.00020261,2]
[369088391,1751466646834,-151.0,0.00020261,2]
[369088392,1751466646845,-151.0,0.00020261,2]
[369088393,1751466646856,-241.411503,0.00020261,2]
[369088394,1751466646867,-241.411503,0.00020261,2]
[369088395,1751466647004,-430.359968,0.00020261,2]
[369088396,1751466647015,-430.359968,0.00020261,2]
[369088397,1751466647024,-151.0,0.00020261,2]
[369088398,1751466647034,-172.454642,0.00020261,2]
[369088399,1751466647043,-172.454642,0.00020261,2]
[369088400,1751466647052,-151.0,0.00020261,2]
[369088401,1751466647062,-151.0,0.00020261,2]
[369088402,1751466647072,-245.851277,0.00020261,2]
[369088403,1751466647081,-245.851277,0.00020261,2]
[369088404,1751466647091,-151.0,0.00020273,2]
[369088405,1751466647100,-191.092026,0.00020273,2]
[369088406,1751466647110,-191.092026,0.00020273,2]
[369088407,1751466647120,-191.092026,0.00020273,2]
[369088408,1751466647129,-191.092026,0.00020273,2]
[369088409,1751466647139,-460.0,0.00020273,2]
[369088410,1751466647149,-151.0,0.00020273,2]
[369088411,1751466647159,-151.0,0.00020273,2]
[369088412,1751466647169,-151.0,0.00020273,2]
[369088413,1751466647178,-460.0,0.00020273,2]
[369088414,1751466647188,-460.0,0.00020273,2]
[369088415,1751466647198,-151.0,0.00020273,2]
[369088416,1751466647207,-460.0,0.00020273,2]
[369088417,1751466647217,-151.0,0.00020273,2]
[369088418,1751466647226,-151.0,0.00020273,2]
[369088419,1751466647238,-592.94,0.00020273,2]
[369088420,1751466647247,-460.0,0.00020273,2]
[369088421,1751466647257,-460.0,0.00020273,2]
[369088422,1751466647267,-241.411503,0.00020273,2]
[369088423,1751466647278,-241.411503,0.00020273,2]
[369088424,1751466647287,-460.0,0.00020273,2]
[369088425,1751466647297,-561.97,0.00020273,2]
[369088426,1751466647306,-430.359968,0.00020273,2]
[369088427,1751466647316,-430.359968,0.00020273,2]
[369088428,1751466647325,-613.15,0.00020273,2]
[369088429,1751466647335,-151.0,0.00020273,2]
[369088430,1751466647344,-172.454642,0.00020273,2]
[369088431,1751466647354,-172.454642,0.00020273,2]
[369088432,1751466647363,-151.0,0.00020273,2]
[369088433,1751466647376,-597.97240175,0.00020273,2]
[369088434,1751466647385,-460.0,0.00020273,2]
[369088435,1751466647394,-1206.3,0.00020273,2]
[369088436,1751466647404,-253.457221,0.00020273,2]
[369088437,1751466647414,-253.457221,0.00020273,2]
[369088438,1751466647423,-253.457221,0.00020273,2]
[369088439,1751466647432,-253.457221,0.00020273,2]
[369088440,1751466647442,-460.0,0.00020273,2]
[369088441,1751466647451,-460.0,0.00020273,2]
[369088442,1751466647461,-217.568585,0.00020273,2]
[369088443,1751466647470,-217.568585,0.00020273,2]
[369088444,1751466647482,-608.16,0.00020273,2]
[369088445,1751466647492,-507.74,0.00020273,2]
[369088446,1751466647501,-460.0,0.00020273,2]
[369088447,1751466647510,-1038.44,0.00020273,2]
[369088448,1751466647521,-460.0,0.00020273,2]
[369088449,1751466647531,-1714.6,0.00020273,2]
[369088450,1751466647540,-938.5,0.00020273,2]
[369088451,1751466647549,-460.0,0.00020273,2]
[369088452,1751466647558,-451.635067,0.00020273,2]
[369088453,1751466647568,-201.15374714,0.00020273,2]
[369088454,1751466647577,-451.635067,0.00020273,2]
[369088455,1751466647586,-481.985425,0.00020273,2]
[369088456,1751466647596,-481.985425,0.00020273,2]
[369088457,1751466647605,-481.985425,0.00020273,2]
[369088458,1751466647614,-460.0,0.00020273,2]
[369088459,1751466647623,-481.985425,0.00020273,2]
[369088460,1751466647633,-460.0,0.00020273,2]
[369088461,1751466647643,-4082.07,0.00020273,2]
[369088462,1751466647652,-151.0,0.00020273,2]
[369088463,1751466647661,-532.57,0.00020273,2]
[369088464,1751466647671,-151.0,0.00020273,2]
[369088465,1751466647680,-548.32,0.00020273,2]
[369088466,1751466647689,-1629.44,0.00020273,2]
[369088467,1751466647698,-151.0,0.00020273,2]
[369088468,1751466647708,-460.0,0.00020273,2]
[369088469,1751466647717,-973.5,0.00020273,2]
[369088470,1751466647726,-460.0,0.00020273,2]
[369088471,1751466647736,-1421.39,0.00020273,2]
[369088472,1751466647746,-460.0,0.00020273,2]
[369088473,1751466647755,-2500.66,0.00020273,2]
[369088474,1751466647765,-2690.46,0.00020273,2]
[369088475,1751466647774,-151.0,0.00020273,2]
[369088476,1751466647784,-4321.4,0.00020273,2]
[369088477,1751466647793,-460.0,0.00020273,2]
[369088478,1751466647803,-460.0,0.00020273,2]
[369088479,1751466647812,-614.07,0.00020273,2]
[369088480,1751466647821,-1673.25,0.00020273,2]
[369088481,1751466647831,-709.4,0.00020273,2]
[369088482,1751466647840,-460.0,0.00020273,2]
[369088483,1751466647850,-460.0,0.00020273,2]
[369088484,1751466647859,-460.0,0.00020273,2]
[369088485,1751466647869,-245.851277,0.00020273,2]
[369088486,1751466647878,-600.92,0.00020273,2]
[369088487,1751466647888,-245.851272,0.00020273,2]
[369088488,1751466647897,-460.0,0.00020273,2]
[369088489,1751466647906,-460.0,0.00020273,2]
[369088490,1751466647916,-460.0,0.00020273,2]
[369088491,1751466647925,-1068.4,0.00020273,2]
[369088492,1751466647935,-576.49,0.00020273,2]
[369088493,1751466647945,-477.75,0.00020273,2]
[369088494,1751466647954,-936.1,0.00020273,2]
[369088495,1751466647964,-2073.05,0.00020273,2]
[369088496,1751466647973,-2623.17,0.00020273,2]
[369088497,1751466647983,-938.4,0.00020273,2]
[369088498,1751466647992,-600.34,0.00020273,2]
[369088499,1751466648002,-460.0,0.00020273,2]
[369088500,1751466648011,-460.0,0.00020273,2]
[369088501,1751466648020,-566.41,0.00020273,2]
[369088502,1751466648030,-460.0,0.00020273,2]
[369088503,1751466648039,-460.0,0.00020273,2]
[369088504,1751466648049,-3089.83,0.00020273,2]
[369088505,1751466648058,-537.5,0.00020273,2]
[369088506,1751466648068,-460.0,0.00020273,2]
[369088507,1751466648077,-1580.4,0.00020273,2]
[369088508,1751466648087,-3964.93,0.00020273,2]
[369088509,1751466648097,-504.75,0.00020273,2]
[369088510,1751466648106,-460.0,0.00020273,2]
[369088511,1751466648116,-460.0,0.00020273,2]
[369088512,1751466648126,-460.0,0.00020273,2]
[369088513,1751466648136,-460.0,0.00020273,2]
[369088514,1751466648146,-1972.09,0.00020273,2]
[369088515,1751466648155,-511.05,0.00020273,2]
[369088516,1751466648165,-4287.54,0.00020273,2]
[369088517,1751466648175,-460.0,0.00020273,2]
[369088518,1751466648184,-1703.05,0.00020273,2]
[369088519,1751466648195,-460.0,0.00020273,2]
[369088520,1751466648205,-331.30579108,0.00020273,2]
[369088521,1751466648214,-460.0,0.00020273,2]
[369088522,1751466648224,-1074.93,0.00020273,2]
[369088523,1751466648234,-575.597667,0.00020281,2]
[369088524,1751466648244,-575.597667,0.00020281,2]
[369088525,1751466648253,-575.597667,0.00020281,2]
[369088526,1751466648263,-177.5104021,0.00020281,2]
[369088527,1751466648273,-575.597667,0.00020281,2]
[369088528,1751466648284,-575.597667,0.00020281,2]
[369088529,1751466648294,-1109.4349111,0.00020281,2]
[369088530,1751466648304,-151.0,0.000203,4]
[369088531,1751466648313,-1000.0,0.0002032,2]
[369088532,1751466648324,-1000.0,0.0002032,2]
[369088533,1751466648334,-151.0,0.00020321,2]
[369088534,1751466648345,-151.0,0.00020321,2]
[369088535,1751466648355,-451.635067,0.00020337,2]
[369088536,1751466648366,-451.635076,0.00020337,2]
[369088537,1751466648378,-151.0,0.00020337,2]
[369088538,1751466648389,-26804.94559885,0.00020342,2]
[369088539,1751466648399,-1004.79287362,0.00020368,2]
[369088540,1751466648410,-650.0,0.00020373,2]
[369088541,1751466648420,-5709.94641149,0.00020383,3]
[369088542,1751466648430,-370.20224997,0.00020385,2]
[369088543,1751466648440,-151.0,0.000204,2]
[369088544,1751466648450,-151.0,0.000204,2]
[369088545,1751466648460,-151.0,0.000204,2]
[369088546,1751466648470,-151.0,0.000204,2]
[369088547,1751466648481,-151.0,0.000204,2]
[369088548,1751466648491,-241.411503,0.000204,2]
[369088549,1751466648501,-241.411503,0.000204,2]
[369088550,1751466648511,-430.359968,0.000204,2]
[369088551,1751466648521,-430.359968,0.000204,2]
[369088552,1751466648531,-252.580209,0.000204,2]
[369088553,1751466648541,-172.454642,0.000204,2]
[369088554,1751466648551,-172.454642,0.000204,2]
[369088555,1751466648562,-151.0,0.000204,2]
[369088556,1751466648572,-253.457221,0.000204,2]
[369088557,1751466648582,-253.457227,0.000204,2]
[369088558,1751466648591,-677.42011091,0.0002043,2]
[369088559,1751466648739,-322.57988909,0.0002043,2]
[369088560,1751466648748,-213.90888375,0.00020438,3]
[369088561,1751466648758,-4434.0,0.000205,2]
[369088562,1751466648768,-151.0,0.000205,2]
[369088563,1751466648778,-151.0,0.000205,3]
[369088564,1751466648788,-151.0,0.000205,4]
[369088565,1751466648797,-160.0,0.00020521,3]
[369088566,1751466648806,-3256.81465819,0.00020521,3]
[369088567,1751466648817,-435.21364096,0.00020521,3]
[369088568,1751466648830,-412.44503889,0.00020521,3]
[369088569,1751466648840,-151.0,0.00020521,2]
[369088570,1751466648850,-217.568589,0.00020521,2]
[369088571,1751466648859,-481.985425,0.00020521,2]
[369088572,1751466648870,-481.98542,0.00020521,2]
[369088573,1751466648880,-151.0,0.00020521,2]
[369088574,1751466648889,-1398.16,0.00020538,3]
[369088575,1751466648899,-699.08,0.00020538,3]
[369088576,1751466648908,-349.54,0.00020538,3]
[369088577,1751466648917,-151.0,0.00020547,2]
[369088578,1751466648927,-191.092026,0.00020547,2]
[369088579,1751466648938,-191.092026,0.00020547,2]
[369088580,1751466648949,-460.0,0.00020547,2]
[369088581,1751466648959,-151.0,0.00020547,2]
[369088582,1751466648969,-151.0,0.00020547,2]
[369088583,1751466648980,-151.0,0.00020547,2]
[369088584,1751466648990,-151.0,0.00020547,2]
[369088585,1751466649001,-151.0,0.00020547,2]
[369088586,1751466649012,-460.0,0.00020547,2]
[369088587,1751466649023,-264.661992,0.00020547,2]
[369088588,1751466649033,-460.0,0.00020547,2]
[369088589,1751466649044,-151.0,0.00020547,2]
[369088590,1751466649056,-151.0,0.00020547,2]
[369088591,1751466649067,-592.94,0.00020547,2]
[369088592,1751466649077,-460.0,0.00020547,2]
[369088593,1751466649087,-241.411503,0.00020547,2]
[369088594,1751466649097,-241.411503,0.00020547,2]
[369088595,1751466649107,-460.0,0.00020547,2]
[369088596,1751466649120,-561.97,0.00020547,2]
[369088597,1751466649131,-430.359968,0.00020547,2]
[369088598,1751466649142,-430.359968,0.00020547,2]
[369088599,1751466649152,-613.15,0.00020547,2]
[369088600,1751466649162,-172.454642,0.00020547,2]
[369088601,1751466649173,-172.45465,0.00020547,2]
[369088602,1751466649183,-151.0,0.00020547,2]
[369088603,1751466649194,-460.0,0.00020547,2]
[369088604,1751466649204,-1206.3,0.00020547,2]
[369088605,1751466649214,-460.0,0.00020547,2]
[369088606,1751466649224,-608.16,0.00020547,2]
[369088607,1751466649234,-507.74,0.00020547,2]
[369088608,1751466649244,-1038.44,0.00020547,2]
[369088609,1751466649254,-460.0,0.00020547,2]
[369088610,1751466649264,-1714.6,0.00020547,2]
[369088611,1751466649274,-938.5,0.00020547,2]
[369088612,1751466649284,-460.0,0.00020547,2]
[369088613,1751466649294,-460.0,0.00020547,2]
[369088614,1751466649304,-460.0,0.00020547,2]
[369088615,1751466649314,-4082.07,0.00020547,2]
[369088616,1751466649324,-532.57,0.00020547,2]
[369088617,1751466649333,-548.32,0.00020547,2]
[369088618,1751466649343,-1629.44,0.00020547,2]
[369088619,1751466649353,-460.0,0.00020547,2]
[369088620,1751466649363,-973.5,0.00020547,2]
[369088621,1751466649374,-460.0,0.00020547,2]
[369088622,1751466649384,-1421.39,0.00020547,2]
[369088623,1751466649395,-460.0,0.00020547,2]
[369088624,1751466649405,-2500.66,0.00020547,2]
[369088625,1751466649414,-2690.46,0.00020547,2]
[369088626,1751466649424,-4321.4,0.00020547,2]
[369088627,1751466649434,-460.0,0.00020547,2]
[369088628,1751466649443,-460.0,0.00020547,2]
[369088629,1751466649453,-614.07,0.00020547,2]
[369088630,1751466649462,-1673.25,0.00020547,2]
[369088631,1751466649472,-709.4,0.00020547,2]
[369088632,1751466649481,-460.0,0.00020547,2]
[369088633,1751466649493,-460.0,0.00020547,2]
[369088634,1751466649503,-460.0,0.00020547,2]
[369088635,1751466649512,-600.92,0.00020547,2]
[369088636,1751466649522,-261.04234862,0.00020547,2]
[369088637,1751466649531,-460.0,0.00020547,2]
[369088638,1751466649541,-1068.4,0.00020547,2]
[369088639,1751466649550,-576.49,0.00020547,2]
[369088640,1751466649560,-477.75,0.00020547,2]
[369088641,1751466649569,-936.1,0.00020547,2]
[369088642,1751466649578,-2073.05,0.00020547,2]
[369088643,1751466649587,-2623.17,0.00020547,2]
[369088644,1751466649598,-938.4,0.00020547,2]
[369088645,1751466649607,-600.34,0.00020547,2]
[369088646,1751466649617,-460.0,0.00020547,2]
[369088647,1751466649627,-566.41,0.00020547,2]